Cogmind - Beta 16 @@@ ROGUE MODE // 2025.11.30 @ 00:09:23 Player: cptwinky Result: Escaped! Performance ------------- Evolutions (9) 4500 Regions Visited (13) 2600 Robots Destroyed (163) 815 Value Destroyed (8658) 8658 Prototype IDs (46) 920 Alien Tech Used (1) 200 Bonus (6820) 6820 TOTAL SCORE: 24513 Bonus ------- High Alert Combat Kills 2159 Follower Combat Kills 757 Registered with UFD 300 Met Optimus in HQ 500 Met Data Miner 300 Win 3000 Friendly Fire -196 Cogmind --------- Core Integrity 1154/1600 Matter 202/300 Energy 85/200 System Corruption 32% Temperature Cool (16) Movement Treading (250) Ox1 Location To Epsilon Eridani Parts ------- > --- POWER (2) -------- Micro Antimatter Reactor Micro Antimatter Reactor > --- PROPULSION (4) --- Advanced Heavy Siege Treads Advanced Heavy Siege Treads > --- UTILITY (14) ----- Advanced Heat Sink Advanced Cooling System Huge Storage Unit Deep Structural Scanner Seismic Detector Advanced Target Analyzer Advanced Target Analyzer Core Analyzer Core Analyzer Improved Armor Integrity Analyzer Improved Transmission Jammer Graphene Brace Advanced Force Field Improved Hacking Suite > --- WEAPON (6) ------- Gamma Rifle Enhanced Quantum Rifle Enhanced Quantum Rifle Enhanced Nova Cannon Enhanced Nova Cannon Ragnarok Missile Launcher > --- INVENTORY (25) --- Light Particle Reactor Quantum Reactor Medium Treads Medium Treads Compact Wheel Overtuned Huge Scrapsphere Advanced Energy Well (500) Matter Compressor (38) Long-range Tractor Beam Advanced Datajack CPS Tube (2) Makeshift Sword Peak State ------------ > --- POWER ------------ Micro Antimatter Reactor Micro Antimatter Reactor > --- PROPULSION ------- Advanced Heavy Siege Treads Advanced Heavy Siege Treads > --- UTILITY ---------- Advanced Heat Sink Advanced Cooling System Huge Storage Unit Deep Structural Scanner Seismic Detector Advanced Target Analyzer Advanced Target Analyzer Core Analyzer Core Analyzer Improved Armor Integrity Analyzer Improved Transmission Jammer Graphene Brace Advanced Force Field Improved Hacking Suite > --- WEAPON ----------- Gamma Rifle Enhanced Quantum Rifle Enhanced Quantum Rifle Enhanced Nova Cannon Enhanced Nova Cannon Ragnarok Missile Launcher > --- INVENTORY -------- Light Particle Reactor Quantum Reactor Medium Treads Medium Treads Compact Wheel Overtuned Huge Scrapsphere Advanced Energy Well Matter Compressor Long-range Tractor Beam Advanced Datajack CPS Tube Makeshift Sword [Rating: 185] Favorites ----------- Power Ion Engine Engine Ion Engine Power Core Nuclear Core Reactor Micro Antimatter Reactor Propulsion Light Treads Treads Light Treads Leg Makeshift Leg Wheel Overtuned Huge Scrapsphere Utility Hacking Suite Device Advanced Cooling System Storage Huge Storage Unit Processor Core Analyzer Hackware Hacking Suite Protection Improved Medium Armor Plating Weapon Dispersion Rifle Energy Gun Dispersion Rifle Energy Cannon Powered Cannon Ballistic Gun KE Penetrator Ballistic Cannon Battle Cannon Launcher Smartbomb Launcher Special Weapon Mining Laser Slashing Weapon Makeshift Sword Special Melee Weapon Improved Datajack Build | -11 -10 -10 -8 -8 -6 -6 -6 -5 -5 -4 -3 -2 -1 ------- Run | Yrd Mat Sub Rec Scr Fac Low Dat Pro Fac Fac Res Res Acc Slots Evolved 18 | . . . . . 8 . . . 2 2 2 2 2 Power 1 | . . . . . . . . . . 1 . . . Propulsion 2 | . . . . . 1 . . . 1 . . . . Utility 11 | . . . . . 3 . . . 1 1 2 2 2 Weapon 4 | . . . . . 4 . . . . . . . . Parts Attached 133 | 6 11 15 2 10 8 1 . 15 7 2 6 7 43 Power 14 | 1 2 . . 2 . . . 1 2 . 1 . 5 Engine 4 | 1 2 . . . . . . 1 . . . . . Core 6 | . . . . 2 . . . . 2 . 1 . 1 Reactor 4 | . . . . . . . . . . . . . 4 Propulsion 18 | 2 2 3 . 4 1 1 . 1 1 . . . 3 Treads 11 | 2 2 1 . 2 . . . . 1 . . . 3 Leg 2 | . . 1 . . . 1 . . . . . . . Wheel 5 | . . 1 . 2 1 . . 1 . . . . . Hover . | . . . . . . . . . . . . . . Flight . | . . . . . . . . . . . . . . Utility 55 | 1 3 3 2 1 4 . . 6 2 1 3 4 25 Device 24 | . . 2 . . 2 . . 3 1 . 2 3 11 Storage 5 | 1 1 1 . 1 . . . 1 . . . . . Processor 12 | . . . 1 . 1 . . 1 1 1 1 1 5 Hackware 6 | . . . 1 . . . . . . . . . 5 Protection 8 | . 2 . . . 1 . . 1 . . . . 4 Artifact . | . . . . . . . . . . . . . . Weapon 46 | 2 4 9 . 3 3 . . 7 2 1 2 3 10 Energy Gun 18 | . 1 3 . 1 2 . . 2 1 . 1 3 4 Energy Cannon 7 | . . . . . 1 . . 1 . . 1 . 4 Ballistic Gun 8 | 2 2 . . 1 . . . 2 1 . . . . Ballistic Cannon 2 | . . 1 . . . . . . . 1 . . . Launcher 6 | . 1 1 . . . . . 2 . . . . 2 Special Weapon 2 | . . 2 . . . . . . . . . . . Impact Weapon . | . . . . . . . . . . . . . . Slashing Weapon 2 | . . 2 . . . . . . . . . . . Piercing Weapon . | . . . . . . . . . . . . . . Special Melee Weapon 1 | . . . . 1 . . . . . . . . . Unidentified Prototypes 7 | . . 1 . . . . . 5 1 . . . . Parts Lost 45 | . . 1 . . . . . 1 3 . . 9 31 Power 4 | . . . . . . . . . . . . . 4 Propulsion 1 | . . 1 . . . . . . . . . . . Utility 24 | . . . . . . . . 1 1 . . 4 18 Weapon 16 | . . . . . . . . . 2 . . 5 9 Highest Loss Streak 12 | . . 1 . . . . . 1 3 . . 5 12 To Critical Strikes . | . . . . . . . . . . . . . . Average Backups 15 | 2 8 8 13 19 19 21 22 21 21 22 21 22 18 Power . | . . . . . . 1 1 . 1 2 1 2 1 Propulsion 1 | . 1 . 2 2 2 3 3 2 1 1 1 1 2 Utility 7 | . 3 3 5 11 10 11 12 9 11 11 10 10 8 Weapon 3 | . 2 4 3 3 3 3 4 5 5 5 5 6 4 Tool/Special . | . . . . . . . . . . . . . . Unused Backups 40 | . 3 4 1 8 1 . . 7 . 1 . 4 11 Power 3 | . . . . . . . . . . . . 1 2 Propulsion 6 | . 1 . . 1 . . . 1 . . . . 3 Utility 23 | . 1 1 1 6 1 . . 6 . 1 . 3 3 Weapon 5 | . 1 3 . . . . . . . . . . 1 Tool/Special 3 | . . . . 1 . . . . . . . . 2 Average Slot Usage (%) 89 | . 98 97 99 96 72 86 87 86 82 74 85 84 74 Engine 7 | . 13 14 14 7 . . . 4 1 . . . . Core 4 | . . . . 6 11 12 12 5 3 5 9 8 4 Treads 12 | . 27 17 14 14 9 5 6 5 5 5 4 4 4 Leg 1 | . . 6 . . . . . . . . . . . Wheel 5 | . . 1 14 13 6 6 6 5 5 5 4 4 2 Device 7 | . . 10 3 . 5 5 6 4 7 11 12 15 17 Storage 9 | . 14 14 14 14 6 6 6 5 5 5 4 4 3 Processor 4 | . . . . . 5 6 6 10 10 8 12 15 11 Hackware 5 | . . . 10 14 6 6 6 5 5 5 4 4 8 Protection 3 | . 13 3 . . 5 6 6 3 3 5 4 3 1 Energy Gun 8 | . 7 8 . . . 12 12 20 18 10 12 12 7 Energy Cannon 1 | . . . . . 6 6 6 4 . . . 1 2 Ballistic Gun 5 | . 20 1 . 10 6 6 6 2 13 10 9 6 . Ballistic Cannon 3 | . . 7 13 . . . . . . 4 2 2 . Slashing Weapon 5 | . . 8 14 13 . 5 . . . . . . . Peak Build Rating 185 | 6 9 18 17 28 72 76 73 100 115 118 143 155 185 Average Rating 57 | 4 8 14 15 22 53 73 72 83 111 116 137 148 147 On Entrance 61 | . 6 9 14 15 26 72 74 72 85 104 118 140 129 Avg Prop Armor Cover (%) 9 | . . 9 13 16 10 6 7 6 8 7 7 7 7 Naked Turns . | . . . . . . . . . . . . . . Heaviest Build 189 | 11 23 51 51 92 138 138 138 153 142 148 166 169 189 Greatest Support 165 | 40 40 40 10 40 28 28 28 28 85 20 20 20 165 Greatest Overweight (x) 9 | . 1 5 5 8 9 4 4 6 7 7 8 8 9 Average Overweight (x) 3 | . . 1 4 4 6 4 4 4 6 6 8 7 5 Largest Inventory Capacity 25 | 8 10 20 20 25 25 25 25 25 25 25 25 25 25 Average Capacity 19 | 7 8 11 20 22 25 25 25 25 25 25 25 25 25 Most Carried 25 | 5 10 10 19 25 25 25 25 25 25 25 25 25 25 Average Carried 17 | 2 8 9 14 22 22 24 25 24 23 24 23 24 20 Final Capacity 25 | 8 10 20 20 25 25 25 25 25 25 25 25 25 25 Final Carried 25 | 5 10 10 19 25 24 25 25 25 25 25 25 23 13 Scrap Suit Usage (%) 1 | . . . . . . . . 1 1 . . 1 . Class Distribution -------------------- 45% | Mutant 11% | Scavenger-Executioner 9% | Derelict-Executioner 6% | Executioner 6% | Scavenger-Mutant 5% | Hacker-Executioner 4% | Scavenger-Gunner 3% | Derelict-Mutant Dominant Class ---------------- Mutant | -10/Materials Mutant | -10/Subcaves Mutant | -8/Recycling Mutant | -8/Scraptown Commander-Skirmisher | -6/Factory Derelict-Executioner | -6/Lower Caves Derelict-Executioner | -6/Data Miner Executioner | -5/Proximity Caves Scavenger-Executioner | -5/Factory Scavenger-Executioner | -4/Factory Scavenger-Executioner | -3/Research Scavenger-Executioner | -2/Research Hacker-Executioner | -1/Access Resources | -11 -10 -10 -8 -8 -6 -6 -6 -5 -5 -4 -3 -2 -1 ----------- Run | Yrd Mat Sub Rec Scr Fac Low Dat Pro Fac Fac Res Res Acc Matter Collected 6270 | 272 381 688 54 110 493 180 . 1143 345 60 104 469 1971 Remotely 520 | . . . . . . . . . . . . . 520 Salvage Created 7307 | 85 668 134 169 . 526 152 . 908 669 79 152 425 3340 Parts 295 | 7 48 20 2 . 19 1 . 27 28 2 8 14 119 Haulers Intercepted 3 | . 1 . . . . . . 1 . . . . 1 Recyclers Shooed 2 | . 1 . . . . . . . . . . . 1 Parts Field Recycled . | . . . . . . . . . . . . . . Retrieved Matter . | . . . . . . . . . . . . . . Parts Self-Destructed 66 | . . 15 . . . 2 . 49 . . . . . Prevented . | . . . . . . . . . . . . . . Parts Restored . | . . . . . . . . . . . . . . Kills | -11 -10 -10 -8 -8 -6 -6 -6 -5 -5 -4 -3 -2 -1 ------- Run | Yrd Mat Sub Rec Scr Fac Low Dat Pro Fac Fac Res Res Acc Combat Hostiles Destroyed 141 | . 16 8 . . 11 3 . 11 10 1 4 10 67 Guns 41 | . 14 1 . . . . . . 10 1 1 5 9 Cannons 33 | . . . . . 3 1 . 8 . . . . 21 AOE 58 | . 2 7 . . 6 2 . 3 . . 3 4 31 Classes Destroyed 21 | 2 4 3 . . 2 1 . 3 2 . . 1 3 Builder 5 | . . . . . . . . . 1 . 1 1 2 Tunneler 2 | 1 . . . . 1 . . . . . . . . Hauler 3 | . 1 . . . . . . 1 . . . . 1 Recycler 3 | 1 . . 2 . . . . . . . . . . Operator 5 | . 2 . . . . . . . . . . 1 2 Drone 1 | . . . . . . . . 1 . . . . . Swarmer 24 | . 3 5 . . 3 . . . . . 3 . 10 Cutter 3 | . . . . . . . . . . . . . 3 Grunt 71 | . 13 . . . 7 3 . 8 9 . . 6 25 Brawler 1 | . . . . . . . . . . . . . 1 Duelist 2 | . . . . . 1 . . 1 . . . . . Sentry 10 | . . . . . 2 . . . . 1 1 2 4 Specialist 1 | . . . . . . . . . . . . . 1 Hunter 11 | . . . . . . . . 1 . . . . 10 Programmer 15 | . . . . . . . . . . . . 2 13 Heavy 1 | . . . . . . . . . 1 . . . . Artisan 2 | . . 2 . . . . . . . . . . . Subdweller 3 | . . 3 . . . . . . . . . . . Scrapoid 1 | . . . . . . . . 1 . . . . . Zionite 1 | . . 1 . . . . . . . . . . . Tinkerer 1 | . . . . . . 1 . . . . . . . Best Kill Streak 12 | 2 4 4 1 . 3 3 . 4 5 1 4 10 12 Combat Bots Only 11 | . 4 4 . . 3 3 . 4 5 1 3 9 11 Max Kills in Single Turn 4 | 1 1 4 1 . 2 2 . 2 2 1 4 2 4 Gunslinging . | . . . . . . . . . . . . . . Exploded 4 | . 1 4 . . 2 2 . 2 . . 3 2 4 Melee . | . . . . . . . . . . . . . . Uniques/NPCs Destroyed . | . . . . . . . . . . . . . . Combat | -11 -10 -10 -8 -8 -6 -6 -6 -5 -5 -4 -3 -2 -1 -------- Run | Yrd Mat Sub Rec Scr Fac Low Dat Pro Fac Fac Res Res Acc Hostile Shots Fired 684 | . 49 26 8 . 47 8 . 34 15 4 6 77 410 Missed 223 | . 18 7 2 . 24 3 . 13 3 2 2 24 125 Hits 461 | . 31 19 6 . 23 5 . 21 12 2 4 53 285 Melee 7 | . . . . . . . . . . . . . 7 Projectile 454 | . 31 19 6 . 23 5 . 21 12 2 4 53 278 AOE 5 | . . 3 . . . . . . . . . . 2 Critical Strikes 26 | . . 1 1 . . . . 1 2 . . 5 16 Actively Blocked 7 | . . . . . . . . . . . . . 7 Part Disruptions 1 | . . . . . . . . . . . . 1 . Damage Taken 11231 | . 367 522 103 . 203 112 . 489 655 52 182 2165 6381 Core 881 | . 61 80 14 . 27 . . 29 38 . 30 156 446 Absorbed by Shields 570 | . . . . . 63 28 . 52 . . . . 427 Reduced by Siege Mode 168 | . . . . . . . . . . . . . 168 Redirected to Shielding 204 | . . . . . . . . . . . . . 204 Regen/Repaired (Parts) 818 | . . . . 764 . . . . 54 . . . . Core Remaining (%) 85 | 100 . . . 38 . . . 93 96 100 97 89 72 Volleys Fired 416 | 3 58 33 . . 26 19 . 39 26 4 12 35 161 Largest 6 | 2 2 2 . . 4 1 . 5 6 5 5 6 4 Hottest 508 | 40 85 120 . . 239 40 . 344 375 293 323 508 402 Shots Fired 718 | 6 113 41 . . 29 19 . 48 99 12 20 83 248 Gun 414 | 6 111 15 . . 3 . . 10 99 10 10 52 98 Cannon 227 | . . 2 . . 21 15 . 34 . 2 9 27 117 Launcher 63 | . 2 10 . . 5 4 . 4 . . 1 4 33 Special 14 | . . 14 . . . . . . . . . . . Kinetic 211 | 6 85 5 . . 6 4 . 6 55 6 4 30 4 Thermal 449 | . 26 29 . . 23 15 . 42 44 6 15 49 200 Explosive 47 | . 2 7 . . . . . . . . 1 4 33 Electromagnetic 11 | . . . . . . . . . . . . . 11 Robot Hit Streak 35 | 3 6 13 . . 3 3 . 10 13 5 10 15 35 Robot Miss Streak 7 | 1 5 3 . . 3 2 . 1 2 1 2 1 7 Penetration Max 1 | . . . . . . . . . 1 . . 1 . Secondary Targets 3 | . 1 . . . . . . . 1 . . . 1 Max Gunslinging Chain 1 | . 1 . . . . . . . 1 . . . 1 Shots Hit Robots 388 | 4 69 11 10 1 12 7 1 32 55 5 6 37 138 Core Hits 282 | 3 32 14 2 . 13 8 . 21 23 3 6 26 131 Critical Kills 12 | . . . . . 3 . . . 2 1 1 1 4 Critical Parts Destroyed 6 | . . . . . . . . . 4 . 2 . . Critical Strikes 20 | . 2 . . . 3 . . . 6 1 3 1 4 Burn 2 | . 2 . . . . . . . . . . . . Meltdown 7 | . . . . . 3 . . . . . . . 4 Destroy 11 | . . . . . . . . . 6 1 3 1 . Melee Attacks 47 | . . 26 12 1 . 7 1 . . . . . . Impact . | . . . . . . . . . . . . . . Slashing 45 | . . 26 12 . . 7 . . . . . . . Piercing . | . . . . . . . . . . . . . . Sneak Attacks 13 | . . 2 7 1 . 2 1 . . . . . . Combat Hostiles . | . . . . . . . . . . . . . . Follow-up Attacks . | . . . . . . . . . . . . . . Damage Inflicted 26443 | 49 977 1181 605 . 1388 819 . 1945 1518 132 586 2826 14417 Guns 5545 | 49 845 141 . . . . . 154 1518 102 128 900 1708 Cannons 5526 | . . . . . 670 55 . 1313 . 30 . 183 3275 Explosions 14358 | . 118 973 . . 718 447 . 478 . . 458 1732 9434 Melee 989 | . . 67 605 . . 317 . . . . . . . Ramming 25 | . 14 . . . . . . . . . . 11 . Kinetic 4194 | 49 588 387 . . 718 447 . 493 847 78 47 469 71 Thermal 8493 | . 257 141 . . 670 55 . 1452 671 54 81 614 4498 Explosive 12328 | . 118 586 . . . . . . . . 458 1732 9434 Electromagnetic 414 | . . . . . . . . . . . . . 414 Impact . | . . . . . . . . . . . . . . Slashing 989 | . . 67 605 . . 317 . . . . . . . Piercing . | . . . . . . . . . . . . . . Highest Corruption 32 | . 1 1 1 . . . . . . . . 14 32 Average Corruption 4 | . 1 1 1 . . . . . . . . 8 16 Corruption Purged . | . . . . . . . . . . . . . . Corruption Blocked . | . . . . . . . . . . . . . . Effects 125 | . 8 33 8 . . . . . . . . 6 70 Message Errors 24 | . 3 4 1 . . . . . . . . 1 15 Matter Fused 37 | . 4 11 1 . . . . . . . . 4 17 Heat Flow Errors 19 | . . 6 1 . . . . . . . . . 12 Energy Discharges 15 | . . 3 2 . . . . . . . . 1 9 Parts Rejected 1 | . . . . . . . . . . . . . 1 Data Loss (minor) 10 | . . 3 2 . . . . . . . . . 5 Data Loss (major) 7 | . . 2 1 . . . . . . . . . 4 Misfires 4 | . . 3 . . . . . . . . . . 1 Alerts 1 | . . 1 . . . . . . . . . . . Weapon Failures 7 | . 1 . . . . . . . . . . . 6 Overload Shots . | . . . . . . . . . . . . . . Overflow Damage 1213 | . . 60 198 . 15 161 . 88 . . . 294 397 Projectiles 157 | . . . . . 6 . . 83 . . . . 68 Explosions 670 | . . 33 . . 9 . . 5 . . . 294 329 Melee 386 | . . 27 198 . . 161 . . . . . . . Knockbacks . | . . . . . . . . . . . . . . Impact . | . . . . . . . . . . . . . . Kinetic . | . . . . . . . . . . . . . . Secondary . | . . . . . . . . . . . . . . Self-Inflicted Damage 592 | . . . . . . 48 . 96 . . 76 262 110 Shots 10 | . . . . . . 1 . 4 . . 1 3 1 Rammed 5 | . 4 . . . . . . . . . . 1 . Targets Rammed 5 | . 4 . . . . . . . . . . 1 . Kicked . | . . . . . . . . . . . . . . Crushed . | . . . . . . . . . . . . . . Highest Temperature 456 | . 183 208 198 . 174 38 . 333 360 143 144 260 456 Average Temperature 83 | . 42 74 98 . 39 18 . 64 142 75 79 103 111 Received Heat Transfer 1038 | . 198 96 54 . 39 7 . 117 54 9 9 99 356 Effects 3 | . . . . . . . . . 2 . . . 1 Shutdowns 1 | . . . . . . . . . . . . . 1 Energy Bleed 2 | . . . . . . . . . 2 . . . . Siege Activations 2 | . . . . . . . . . . . . . 2 Total Turns 75 | . . . . . . . . . . . . . 75 Longest Duration 67 | . . . . . . . . . . . . . 67 Martial Activations . | . . . . . . . . . . . . . . Shielding Activations . | . . . . . . . . . . . . . . Robots Disrupted 1 | . . . . . . . . . . . . . 1 Combat Hostiles 1 | . . . . . . . . . . . . . 1 Robots Corrupted 2 | . . . . . . . . . . . . . 2 Combat Hostiles 2 | . . . . . . . . . . . . . 2 Parts Fried 3 | . . . . . . . . . . . . . 3 Impact Corruptions . | . . . . . . . . . . . . . . Robots Melted 8 | . . . . . 3 . . . . . . 1 4 Combat Hostiles 7 | . . . . . 2 . . . . . . 1 4 Parts Melted 14 | . . . . . . . . . 2 . . . 12 Heat Transferred 7235 | . 777 175 . . . . . 222 955 74 111 814 4107 Parts Sabotaged . | . . . . . . . . . . . . . . Parts Stolen . | . . . . . . . . . . . . . . Parts Stripped . | . . . . . . . . . . . . . . Power Chain Reactions . | . . . . . . . . . . . . . . Alert | -11 -10 -10 -8 -8 -6 -6 -6 -5 -5 -4 -3 -2 -1 ------- Run | Yrd Mat Sub Rec Scr Fac Low Dat Pro Fac Fac Res Res Acc Maximum Alert Level 5 | . . . . . 2 . . . 2 . . 1 5 Low Security (%) 63 | 100 100 . 100 . 81 . . . 27 100 100 73 20 Level 1 15 | . . . . . 12 . . . 71 . . 26 14 Level 2 5 | . . . . . 5 . . . 1 . . . 14 Level 3 2 | . . . . . . . . . . . . . 8 Level 4 8 | . . . . . . . . . . . . . 27 Level 5 4 | . . . . . . . . . . . . . 13 High Security . | . . . . . . . . . . . . . . Max Security . | . . . . . . . . . . . . . . Peak Influence 1890 | 5 130 . 60 . 413 . . . 406 114 133 270 1890 Initial 359 | . . . 3 . . . . . 359 114 43 63 2 Average 321 | . 47 . 12 . 107 . . . 260 86 40 110 828 Influence Increases 6565 | 10 499 232 229 . 1000 102 . 351 750 49 171 382 2790 Destroy 0b10 Robot/C 3180 | . 320 180 100 . 340 80 . 260 260 20 80 200 1340 Destroy 0b10 Robot/NC 125 | 10 15 . 15 . 15 . . 20 10 . 5 10 25 Destroy Leader 586 | . 72 10 . . 90 20 . 20 52 10 20 40 252 Allied During Kill 396 | . . 27 54 . 212 2 . 51 50 . . . . Successful Hack 163 | . 6 . 45 . 73 . . . . . . . 39 Select Force Hacks 20 | . . . . . 20 . . . . . . . . Disable Machine 330 | . . . 15 . 105 . . . 30 15 30 . 135 Destroy Structure 1270 | . 11 . . . 145 . . . 48 4 36 117 909 Advance Influence 300 | . . . . . . . . . 300 . . . . Lose Combat Pursuer 195 | . 75 15 . . . . . . . . . 15 90 Influence Decreases 4677 | 10 466 258 236 . 921 181 . 256 612 199 141 490 907 Entered New Map 299 | . . 17 4 . . 30 . . 36 119 40 50 3 Time Decay 2953 | 10 466 191 232 . 356 151 . 246 326 80 101 220 574 Search Patrol Dispatched 100 | . . . . . . . . . 100 . . . . Lost Part 430 | . . 10 . . . . . 10 30 . . 70 310 Lost Ally 340 | . . 40 . . 160 . . . 120 . . . 20 Purge Threat 555 | . . . . . 405 . . . . . . 150 . Squads Dispatched 36 | . 3 . . . 6 . . . 6 . 1 1 19 Investigation 5 | . . . . . 2 . . . 2 . . . 1 Extermination 10 | . . . . . 1 . . . 1 . 1 1 6 Reinforcement 13 | . 3 . . . 3 . . . 2 . . . 5 Assault 4 | . . . . . . . . . . . . . 4 Garrison 4 | . . . . . . . . . 1 . . . 3 Intercept . | . . . . . . . . . . . . . . Searches Triggered 1 | . . . . . . . . . 1 . . . . Data Miner Redirects 3 | . . . . . . . . . . . . . 3 Construction Impeded 1 | . . . . . . . . . . . . . 1 Haulers Reinforced 1 | . . . . . . . . . . . . . 1 Active Scanning Responses . | . . . . . . . . . . . . . . Cargo Convoy Interrupts . | . . . . . . . . . . . . . . Stealth | -11 -10 -10 -8 -8 -6 -6 -6 -5 -5 -4 -3 -2 -1 --------- Run | Yrd Mat Sub Rec Scr Fac Low Dat Pro Fac Fac Res Res Acc Distress Signals 6 | . 2 . . . . . . 1 . . . 1 2 Communications Jammed 9 | . . . . . . . . . . . . . 9 Distress Signals 9 | . . . . . . . . . . . . . 9 Times Spotted 217 | . 29 19 6 . 15 3 . 20 14 1 7 16 87 Peak Tracking Total 10 | . 4 5 3 . 3 3 . 6 6 1 3 6 10 Tactical Retreats 11 | . 3 1 . . . . . . . . . 1 6 Traps | -11 -10 -10 -8 -8 -6 -6 -6 -5 -5 -4 -3 -2 -1 ------- Run | Yrd Mat Sub Rec Scr Fac Low Dat Pro Fac Fac Res Res Acc Traps Triggered 7 | . 5 . . . 1 . . . . . . . 1 Indirectly . | . . . . . . . . . . . . . . Trap Hack Attempts . | . . . . . . . . . . . . . . Triggered . | . . . . . . . . . . . . . . Disarmed . | . . . . . . . . . . . . . . Reprogrammed 4 | . . . . . 4 . . . . . . . . Reused 1 | . . 1 . . . . . . . . . . . Traps Extracted . | . . . . . . . . . . . . . . Installed 1 | . . 1 . . . . . . . . . . . Triggered . | . . . . . . . . . . . . . . Most Traps Carried 1 | . . 1 . . . . . . . . . . . Machines | -11 -10 -10 -8 -8 -6 -6 -6 -5 -5 -4 -3 -2 -1 ---------- Run | Yrd Mat Sub Rec Scr Fac Low Dat Pro Fac Fac Res Res Acc Machines Disabled 27 | . . 5 1 . 7 . . . 2 1 2 . 9 Max in Single Turn 3 | . . 3 . . 2 . . . 1 1 2 . 2 Garrison Access 5 | . . . . . 1 . . . 1 . . 1 2 Machines Repaired . | . . . . . . . . . . . . . . Machines Dismantled . | . . . . . . . . . . . . . . Machines Sabotaged . | . . . . . . . . . . . . . . Overloaded Fab Kills . | . . . . . . . . . . . . . . Hacking | -11 -10 -10 -8 -8 -6 -6 -6 -5 -5 -4 -3 -2 -1 --------- Run | Yrd Mat Sub Rec Scr Fac Low Dat Pro Fac Fac Res Res Acc Machines Accessed 47 | . 7 2 6 3 7 . 3 . 5 . 1 2 11 Terminals 21 | . 5 . 6 . 2 . . . . . 1 1 6 Fabricators 5 | . . . . . 4 . . . . . . . 1 Repair Stations 2 | . 1 . . . . . . . 1 . . . . Recycling Units 4 | . 1 . . . . . . . 2 . . . 1 Scanalyzers 2 | . . . . . . . . . 1 . . . 1 Garrison Access 5 | . . . . . 1 . . . 1 . . 1 2 Total Hacks 153 | . 20 5 19 24 17 . 28 . 10 . 2 4 24 Successful 102 | . 5 5 11 24 14 . 28 . 7 . . 2 6 Failed 50 | . 15 . 7 . 3 . . . 3 . 2 2 18 Catastrophic 7 | . 1 . 1 . 1 . . . . . 1 . 3 Database Lockouts 1 | . . . 1 . . . . . . . . . . Manual 49 | . 13 . 19 . 5 . . . 2 . . . 10 Terminals 56 | . 15 . 19 . 6 . . . . . 2 2 12 Fabricators 12 | . . . . . 10 . . . . . . . 2 Repair Stations 7 | . 4 . . . . . . . 3 . . . . Recycling Units 5 | . 1 . . . . . . . 3 . . . 1 Scanalyzers 6 | . . . . . . . . . 3 . . . 3 Garrison Access 10 | . . . . . 1 . . . 1 . . 2 6 Terminal Hacks 72 | . 3 5 4 24 6 . 28 . . . . 1 1 Record 27 | . . 4 . 17 . . 6 . . . . . . Part Schematic 13 | . . . . . . . 13 . . . . . . Robot Schematic 6 | . . . . . . . 6 . . . . . . Robot Analysis 10 | . 2 . 2 6 . . . . . . . . . Prototype ID Bank 4 | . . . 1 . . . 3 . . . . . . Open Door 1 | . . . . . . . . . . . . . 1 Terminal Index 1 | . . . 1 . . . . . . . . . . Unreport Threat 4 | . . . . . 3 . . . . . . 1 . Locate Traps 2 | . . . . . 2 . . . . . . . . Reprogram Traps 1 | . . . . . 1 . . . . . . . . Zone Layout 1 | . 1 . . . . . . . . . . . . Proto ID Catalog 2 | . . 1 . 1 . . . . . . . . . Fabricator Hacks 4 | . . . . . 4 . . . . . . . . Network Status 1 | . . . . . 1 . . . . . . . . Load Schematic 1 | . . . . . 1 . . . . . . . . Build 2 | . . . . . 2 . . . . . . . . Repair Station Hacks 3 | . 1 . . . . . . . 2 . . . . Scan Component 2 | . 1 . . . . . . . 1 . . . . Repair 1 | . . . . . . . . . 1 . . . . Recycling Unit Hacks 2 | . 1 . . . . . . . 1 . . . . Retrieve Components 2 | . 1 . . . . . . . 1 . . . . Scanalyzer 3 | . . . . . . . . . 1 . . . 2 Retrieve Study 3 | . . . . . . . . . 1 . . . 2 Garrison Access Hacks 5 | . . . . . 1 . . . 1 . . 1 2 Seal Access 5 | . . . . . 1 . . . 1 . . 1 2 Unauthorized Hacks 13 | . . . 7 . 3 . . . 2 . . . 1 Terminals 8 | . . . 7 . . . . . . . . . 1 Assimilate 1 | . . . . . . . . . . . . . 1 Botnet 2 | . . . 2 . . . . . . . . . . Skim 5 | . . . 5 . . . . . . . . . . Fabricators 3 | . . . . . 3 . . . . . . . . Liberate 1 | . . . . . 1 . . . . . . . . Haulers 1 | . . . . . 1 . . . . . . . . Download 1 | . . . . . 1 . . . . . . . . Repair Stations . | . . . . . . . . . . . . . . Recycling Units 2 | . . . . . . . . . 2 . . . . Fedlink 2 | . . . . . . . . . 2 . . . . Scanalyzers . | . . . . . . . . . . . . . . Garrison Access . | . . . . . . . . . . . . . . Data Cores Recovered 1 | . . . . . . . . . . . . 1 . Used 1 | . . . . . . . . . . . . 1 . Hacking Detections 31 | . 6 . 6 . 5 . . . 2 . 1 2 9 Full Trace Events 2 | . . . . . 1 . . . . . . . 1 Feedback Events . | . . . . . . . . . . . . . . Feedback Blocked . | . . . . . . . . . . . . . . Robot Schematics Acquired 6 | . . . . . . . 6 . . . . . . Robots Built 3 | . . . . . 3 . . . . . . . . Authchips . | . . . . . . . . . . . . . . Time 67 | . . . . . 67 . . . . . . . . Total Robot Build Rating 12 | . . . . . 12 . . . . . . . . Part Schematics Acquired 14 | . . . . . 1 . 13 . . . . . . Parts Built 2 | . . . . . 2 . . . . . . . . Authchips . | . . . . . . . . . . . . . . Time 39 | . . . . . 39 . . . . . . . . Total Part Build Rating 14 | . . . . . 14 . . . . . . . . Part Studies Acquired 3 | . . . . . . . . . 1 . . . 2 Parts Repaired 1 | . . . . . . . . . 1 . . . . Time 56 | . . . . . . . . . 56 . . . . Parts Recycled . | . . . . . . . . . . . . . . Recycled Matter . | . . . . . . . . . . . . . . Retrieved Matter . | . . . . . . . . . . . . . . Retrieved Components . | . . . . . . . . . . . . . . Parts Scanalyzed . | . . . . . . . . . . . . . . Part Schematics Acquired . | . . . . . . . . . . . . . . Parts Damaged . | . . . . . . . . . . . . . . Bothacking | -11 -10 -10 -8 -8 -6 -6 -6 -5 -5 -4 -3 -2 -1 ------------ Run | Yrd Mat Sub Rec Scr Fac Low Dat Pro Fac Fac Res Res Acc Used RIF Installer . | . . . . . . . . . . . . . . Robots Hacked 2 | . . . . 1 . . 1 . . . . . . Non-combat . | . . . . . . . . . . . . . . Combat 2 | . . . . 1 . . 1 . . . . . . Robot Hacks Applied 2 | . . . . 1 . . 1 . . . . . . parse_system 2 | . . . . 1 . . 1 . . . . . . Relay Couplers Released . | . . . . . . . . . . . . . . Fabnet Peak Effective % . | . . . . . . . . . . . . . . Robots Rewired 5 | . . . 3 . . . . 2 . . . . . Allies Hacked 1 | . . . . . 1 . . . . . . . . Hacks Repelled . | . . . . . . . . . . . . . . Allies | -11 -10 -10 -8 -8 -6 -6 -6 -5 -5 -4 -3 -2 -1 -------- Run | Yrd Mat Sub Rec Scr Fac Low Dat Pro Fac Fac Res Res Acc Total Allies 26 | . . 11 3 . 5 . . 7 . . . . . Largest Group 13 | . . 8 11 9 13 1 . 7 6 . . . . Highest-Rated Group 300 | . . 152 194 156 300 30 . 293 246 . . . . Highest-Rated Ally 47 | . . 19 19 19 32 30 . 47 47 . . . . Total Orders 7 | . . . . . . 3 . . . . . . 4 STAY 2 | . . . . . . 2 . . . . . . . FOLLOW 1 | . . . . . . 1 . . . . . . . EXPLORE 3 | . . . . . . . . . . . . . 3 RETURN 1 | . . . . . . . . . . . . . 1 Ally Attacks 192 | . . 12 41 . 53 2 . 15 69 . . . . Total Damage 4171 | . . 321 592 . 1712 69 . 347 1130 . . . . Kills 29 | . . 5 6 . 10 1 . 3 4 . . . . Allies Corrupted . | . . . . . . . . . . . . . . Allies Melted 1 | . . . . . 1 . . . . . . . . Intel | -11 -10 -10 -8 -8 -6 -6 -6 -5 -5 -4 -3 -2 -1 ------- Run | Yrd Mat Sub Rec Scr Fac Low Dat Pro Fac Fac Res Res Acc Active Infowar (turns) 5380 | . . 10 204 . 669 967 144 835 44 . 324 486 1697 Sensors 3885 | . . . . . 669 967 144 835 44 . 277 230 719 Structural 96 | . . . . . . . . . . . . 91 5 Seismic 1046 | . . 10 204 . . . . . . . . . 832 Jamming 1790 | . . . . . . . . . . . 47 373 1370 Robot Analysis Total 10 | . 2 . 2 6 . . . . . . . . . Derelict Logs Recovered 5 | . . 1 . 2 . 1 . 1 . . . . . Drone Launches 3 | . . . . . . . . . . . . . 3 Drone Recoveries 1 | . . . . . . . . . . . . . 1 Exploration | -11 -10 -10 -8 -8 -6 -6 -6 -5 -5 -4 -3 -2 -1 ------------- Run | Yrd Mat Sub Rec Scr Fac Low Dat Pro Fac Fac Res Res Acc Turns Passed 16972 | 123 1301 4608 933 2227 964 1032 145 1595 734 178 326 486 2320 Spaces Moved 8692 | 66 637 2176 587 1274 418 583 88 814 420 114 176 232 1107 Core 5 | 5 . . . . . . . . . . . . . Treads 2890 | 61 637 1772 . 78 . . . . 3 . . . 339 Legs . | . . . . . . . . . . . . . . Wheels 5797 | . . 404 587 1196 418 583 88 814 417 114 176 232 768 Hover . | . . . . . . . . . . . . . . Flight . | . . . . . . . . . . . . . . Fastest Speed 50 | 50 160 110 140 107 160 160 160 130 130 130 150 140 140 Average Speed 168 | 151 160 198 142 169 190 160 160 159 133 139 150 148 152 Slowest Speed 330 | 160 240 240 155 330 225 160 160 175 215 140 150 150 250 Overloaded Moves . | . . . . . . . . . . . . . . Propulsion Burnouts . | . . . . . . . . . . . . . . Robots Hopped . | . . . . . . . . . . . . . . Potential Cave-ins . | . . . . . . . . . . . . . . Cave-ins Triggered 1 | . . . . . . . . . . . . 1 . Exploration Rate (%) 48 | 5 94 95 98 84 18 70 74 68 11 2 8 13 38 Regions Visited 13 Branch Regions 6 Pre-discovered Areas 11 | . . 2 . 6 . 1 1 . 1 . . . . Known Exits Taken 8 | . . . 1 . 1 1 1 1 . 1 1 1 . Unknown Exits Taken 5 | 1 1 1 . 1 . . . . 1 . . . . Scrap Searched 21 | . . 7 . 10 . 3 . 1 . . . . . Spaces Dug 189 | . 9 10 . . 2 13 . 48 5 . 9 17 76 Terrain Destroyed 782 | . 9 60 . . 61 65 . 66 16 2 22 62 419 Melee 4 | . . 1 . . . 3 . . . . . . . Projectile 116 | . . . . . 5 14 . 9 16 2 9 26 35 AOE 662 | . 9 59 . . 56 48 . 57 . . 13 36 384 Terrain Rammed . | . . . . . . . . . . . . . . Walls Destroyed . | . . . . . . . . . . . . . . Machines Disabled . | . . . . . . . . . . . . . . Actions | -11 -10 -10 -8 -8 -6 -6 -6 -5 -5 -4 -3 -2 -1 --------- Run | Yrd Mat Sub Rec Scr Fac Low Dat Pro Fac Fac Res Res Acc Total 10379 | 81 805 2371 670 1344 564 657 91 1080 541 127 219 311 1518 Wait 678 | 2 60 75 39 17 85 34 . 155 67 . 19 4 121 Move 8679 | 65 636 2175 586 1273 417 582 87 813 419 113 175 232 1106 Hop . | . . . . . . . . . . . . . . Pick Up 130 | 5 12 14 9 20 7 2 . 14 6 4 3 8 26 Fast Attach 69 | 6 10 6 1 4 2 3 . 10 3 1 1 4 18 Attach 67 | . . . 1 . 11 1 . 6 2 1 3 3 39 Detach 33 | . . . 3 1 6 . . 5 3 . . . 15 Swap 111 | . 13 20 1 8 1 5 3 7 9 1 6 19 18 Drop 108 | . 12 21 1 20 2 4 . 20 6 3 . 6 13 Fire 416 | 3 58 33 . . 26 19 . 39 26 4 12 35 161 Melee 47 | . . 26 12 1 . 7 1 . . . . . . Ram . | . . . . . . . . . . . . . . Kick . | . . . . . . . . . . . . . . Crush 4 | . 4 . . . . . . . . . . . . Escape Stasis 7 | . . . . . 7 . . . . . . . . Rewire 27 | . . . 17 . . . . 10 . . . . . Trap 1 | . . 1 . . . . . . . . . . . Miscellaneous 2 | . . . . . . . . 1 . . . . 1 Route ------- -11/Scrapyard -10/Materials (discovered 6 exits: [*Mat x3] / [*Min x2] / *Sub) -10/Subcaves (discovered 3 exits: [*Mat x2] / *Rec) -8/Recycling (discovered 2 exits: *Fac / *Scr) -8/Scraptown (discovered 2 exits: *Fac x2) -6/Factory (discovered 3 exits: Fac / *Low x2) -6/Lower Caves (discovered 2 exits: *Low / *Dat) -6/Data Miner -5/Proximity Caves -5/Factory -4/Factory (discovered 2 exits: *Res / Ext) -3/Research (discovered 2 exits: *Res / Qua) -2/Research (discovered 2 exits: *Acc x2) -1/Access To Epsilon Eridani History --------- Turn | Location | Event 7 | -11/Scrapyard | Discovered new exit (range 14) 124 | -11/Scrapyard | Entered Materials 154 | -10/Materials | Discovered new exit (range 9) 300 | -10/Materials | Build established: Mutant 458 | -10/Materials | Discovered new exit (range 14) 458 | -10/Materials | Discovered new exit (range 7) 867 | -10/Materials | Discovered new exit (range 4) 1130 | -10/Materials | Discovered new exit (range 4) 1417 | -10/Materials | Discovered new exit (range 5) 1425 | -10/Materials | Entered Subcaves 1427 | -10/Subcaves | Shifting Twisted Machinery released Sub. Laser 1499 | -10/Subcaves | Shifting Twisted Machinery released Piercing Trap 1610 | -10/Subcaves | Discovered new exit (range 14) 1809 | -10/Subcaves | Core integrity fell below 50% 2145 | -10/Subcaves | Build established: Scavenger-Mutant 2339 | -10/Subcaves | Visited 4L-MR0's lab 2358 | -10/Subcaves | Found Powered Cannon 2435 | -10/Subcaves | Disturbed a concealed Subdweller 2436 | -10/Subcaves | Ambushed by Subdweller buried in earth 2454 | -10/Subcaves | A swath of the cavern ceiling suddenly collapsed 2526 | -10/Subcaves | Discovered new exit (range 7) 2526 | -10/Subcaves | Visited triangular shrine 2536 | -10/Subcaves | Found Prototype Device 2536 | -10/Subcaves | Identified V3-11A's Pendant 2541 | -10/Subcaves | Befriended Subdweller 2639 | -10/Subcaves | A swath of the cavern ceiling suddenly collapsed 2672 | -10/Subcaves | Disturbed a concealed Subdweller 2674 | -10/Subcaves | Disturbed a concealed Subdweller 2676 | -10/Subcaves | Befriended Subdweller 2676 | -10/Subcaves | Befriended Subdweller 2901 | -10/Subcaves | Befriended Subdweller 2920 | -10/Subcaves | Build established: Mutant 3081 | -10/Subcaves | Befriended Subdweller 3220 | -10/Subcaves | Shifting Twisted Machinery released Battle Cannon 3323 | -10/Subcaves | Learned location of Zion (-7) 3323 | -10/Subcaves | Met a Zionite searching for "candidates" 3465 | -10/Subcaves | Shifting Twisted Machinery released Sub. Shrapnel Launcher 3563 | -10/Subcaves | Disturbed a concealed Subdweller 3566 | -10/Subcaves | Befriended Subdweller 3708 | -10/Subcaves | Discovered new exit (range 15) 3816 | -10/Subcaves | Befriended Subdweller 3831 | -10/Subcaves | Befriended Subdweller 4796 | -10/Subcaves | Befriended Subdweller 4796 | -10/Subcaves | Befriended Subdweller 5268 | -10/Subcaves | Visited Clippyterm 5275 | -10/Subcaves | Learned location of Section 7 (-2) 5275 | -10/Subcaves | Learned Factory fabricator intel 5441 | -10/Subcaves | Befriended Subdweller 6033 | -10/Subcaves | Entered Recycling 6033 | -8/Recycling | Accompanied by 8 allies 6389 | -8/Recycling | Discovered new exit (range 10) 6646 | -8/Recycling | Learned 4 Factory zone layouts 6701 | -8/Recycling | Learned Factory emergency access door positions 6745 | -8/Recycling | Learned 2 Storage zone layouts 6777 | -8/Recycling | Learned 4 Factory zone layouts 6798 | -8/Recycling | Learned Storage stockpile data 6828 | -8/Recycling | Identified exit to Scraptown 6867 | -8/Recycling | Learned Factory emergency access door positions 6908 | -8/Recycling | Scanned before Scraplab entrance 6928 | -8/Recycling | Entered Scraplab 6966 | -8/Recycling | Entered Scraptown 6966 | -8/Scraptown | Accompanied by 9 allies 6966 | -8/Scraptown | System corruption cleaned by C-Scrubber 7158 | -8/Scraptown | Delivered V3-11A's Pendant to T0-NE2 in exchange for information 7291 | -8/Scraptown | Discovered new exit (range 11) 7356 | -8/Scraptown | Scanned Subdweller tech in exchange for log data 7360 | -8/Scraptown | Learned location of Warlord (-5) 7361 | -8/Scraptown | Learned location of 1 exit from Factory 7402 | -8/Scraptown | Visited Bundlers 7517 | -8/Scraptown | Visited Cyclists 7581 | -8/Scraptown | Visited CR-KLE's Repair Center 7642 | -8/Scraptown | Visited Spacefarers 7656 | -8/Scraptown | Visited The Evicted 7682 | -8/Scraptown | Visited Fellowship of the Rings 7716 | -8/Scraptown | Visited UFD Registry 7716 | -8/Scraptown | Registered with UFD as "Rusttank" 7768 | -8/Scraptown | Visited Cartography Club 7809 | -8/Scraptown | Found Surveybot 17 Chip 7849 | -8/Scraptown | Learned location of Recycling (-8) 7849 | -8/Scraptown | Learned location of Archives (-4) 7849 | -8/Scraptown | Learned location of Hub_04(d) (-4) 7849 | -8/Scraptown | Learned location of Armory (-4) 7849 | -8/Scraptown | Learned 16 Materials zone layouts 7849 | -8/Scraptown | Learned 12 Factory zone layouts 7849 | -8/Scraptown | Learned 4 Recycling zone layouts 7849 | -8/Scraptown | Learned 12 Upper Caves zone layouts 7849 | -8/Scraptown | Learned 12 Proximity Caves zone layouts 7849 | -8/Scraptown | Learned 16 Proximity Caves zone layouts 7849 | -8/Scraptown | Learned Storage emergency access door positions 7849 | -8/Scraptown | Learned location of 1 exit from Research 7849 | -8/Scraptown | Learned location of 2 exits from Upper Caves 7874 | -8/Scraptown | Found Deep Structural Scanner 7955 | -8/Scraptown | Visited Junk Repository 8032 | -8/Scraptown | Visited Scrapoid Pod Storage 8042 | -8/Scraptown | Found Scrapoid Pod 8081 | -8/Scraptown | Visited Scrap Suit Storage 8091 | -8/Scraptown | Found Scrap Suit 8116 | -8/Scraptown | Visited Observation Area 8142 | -8/Scraptown | Visited DA-N13 Charitable Foundation 8150 | -8/Scraptown | Found DCF Scrap (31 items) 8216 | -8/Scraptown | Visited Science Guys 8279 | -8/Scraptown | Visited Derelict Rescue Squad 8291 | -8/Scraptown | Found DRS Beacon 8327 | -8/Scraptown | Visited Science Testing Area 8356 | -8/Scraptown | Visited Analyses Database 8463 | -8/Scraptown | Build established: Derelict-Mutant 8719 | -8/Scraptown | CR-KLE repaired 6 parts 9082 | -8/Scraptown | Met Optimus 9082 | -8/Scraptown | Accepted into 0bPrime 9178 | -8/Scraptown | Discovered new exit (range 5) 9193 | -8/Scraptown | Entered Factory 9193 | -6/Factory | Accompanied by 8 allies 9193 | -6/Factory | Evolved 8 slots: Propulsion x1, Utility x3, Weapon x4 9194 | -6/Factory | Identified exit to Lower Caves 9194 | -6/Factory | Attached Powered Cannon, gained temporary slot: Power 9195 | -6/Factory | Identified exit to Factory 9198 | -6/Factory | Loaded intel: 6 fabricator locations 9311 | -6/Factory | Fabricated L-41 Fighter? 9601 | -6/Factory | Build established: Commander-Skirmisher 9747 | -6/Factory | Lost 4 allies 9825 | -6/Factory | Lost 3 allies 10059 | -6/Factory | Fabricated Dispersion Rifle? 10097 | -6/Factory | Lost 4 allies 10157 | -6/Factory | Entered Lower Caves 10157 | -6/Lower Caves | Accompanied by 1 ally 10158 | -6/Lower Caves | Identified exit to Lower Caves 10407 | -6/Lower Caves | Build established: Derelict-Executioner 11174 | -6/Lower Caves | A Derelict revealed a hidden shortcut to meet someone special 11185 | -6/Lower Caves | Identified exit to Data Miner 11189 | -6/Lower Caves | Entered Data Miner 11191 | -6/Data Miner | Discovered new exit (range 6) 11221 | -6/Data Miner | Met Data Miner 11272 | -6/Data Miner | Acquired the access code to Warlord's prototype stash 11294 | -6/Data Miner | Received God Mode back door access code from Data Miner 11330 | -6/Data Miner | Identified exit to Proximity Caves 11334 | -6/Data Miner | Entered Proximity Caves 11412 | -5/Proximity Caves | Learned Factory terminal intel 11509 | -5/Proximity Caves | Found Alien Artifact 11509 | -5/Proximity Caves | Identified Core Expander 11509 | -5/Proximity Caves | Installed Core Expander, added new Utility slot 11636 | -5/Proximity Caves | Unaware initiated a cargo recovery operation 11677 | -5/Proximity Caves | Found Prototype Launcher 11677 | -5/Proximity Caves | Identified Point Singularity Launcher 11681 | -5/Proximity Caves | Found Prototype Launcher 11681 | -5/Proximity Caves | Identified Ragnarok Missile Launcher 11684 | -5/Proximity Caves | Found Ragnarok Missile Launcher 11686 | -5/Proximity Caves | Activated DRS Beacon 11720 | -5/Proximity Caves | Spotter reported a threat 11781 | -5/Proximity Caves | Spotter reported a threat 11961 | -5/Proximity Caves | Build established: Executioner 12012 | -5/Proximity Caves | Found Imp. Powered Armor 12041 | -5/Proximity Caves | Spotted B-75 Beast 12420 | -5/Proximity Caves | Scrapoid Pod released 05P05-D (x5) 12800 | -5/Proximity Caves | Found Scrap Suit 12842 | -5/Proximity Caves | Attracted the attention of an 0b10 checkpoint 12929 | -5/Proximity Caves | Entered Factory 12929 | -5/Factory | Accompanied by 6 allies 12929 | -5/Factory | Evolved 2 slots: Propulsion x1, Utility x1 12931 | -5/Factory | Loaded intel: 26 terminal locations 13076 | -5/Factory | Build established: Scavenger-Executioner 13125 | -5/Factory | Repaired Adv. Cooling System? 13214 | -5/Factory | Garrison activated, responded to threat 13229 | -5/Factory | Search patrols dispatched 13380 | -5/Factory | Loaded intel: 8 recycling unit locations 13458 | -5/Factory | Learned location of Protoforge (-2) 13505 | -5/Factory | Lost 5 allies 13614 | -5/Factory | Discovered new exit (range 15) 13659 | -5/Factory | Lost 3 parts (1u2w) 13663 | -5/Factory | Entered another Factory area 13663 | -4/Factory | Evolved 2 slots: Power x1, Utility x1 13664 | -4/Factory | Identified exit to Extension 13824 | -4/Factory | Discovered new exit (range 4) 13835 | -4/Factory | Identified exit to Research 13841 | -4/Factory | Entered Research 13841 | -3/Research | Evolved 2 slots: Utility x2 13842 | -3/Research | Identified exit to Quarantine 14154 | -3/Research | Discovered new exit (range 4) 14162 | -3/Research | Identified exit to Research 14167 | -3/Research | Entered another Research area 14167 | -2/Research | Evolved 2 slots: Utility x2 14168 | -2/Research | Identified exit to Access 14439 | -2/Research | Crushed by falling debris 14449 | -2/Research | Destroyed 9 combat bots 14470 | -2/Research | Lost 3 parts (1u2w) 14626 | -2/Research | System corruption reached 10% 14653 | -2/Research | Entered Access 14653 | -1/Access | Evolved 2 slots: Utility x2 14682 | -1/Access | Lost 5 parts (3u2w) 14968 | -1/Access | Build established: Hacker-Executioner 15683 | -1/Access | Destroyed 7 combat bots 15691 | -1/Access | Lost 3 parts (2u1w) 15800 | -1/Access | System corruption reached 10% 15851 | -1/Access | Lost 12 parts (1p7u4w) 15852 | -1/Access | Destroyed 11 combat bots 16001 | -1/Access | Spotted B-99 Colossus 16131 | -1/Access | Allied Derelicts emerged from ambush trap array 16139 | -1/Access | Garrison activated, responded to threat 16153 | -1/Access | First assault squad dispatched 16174 | -1/Access | Incoming assault squad redirected 16222 | -1/Access | Lost 3 parts (2u1w) 16431 | -1/Access | Incoming assault squad redirected 16503 | -1/Access | Build established: Scavenger-Gunner 16675 | -1/Access | System corruption reached 30% 16711 | -1/Access | Lost 5 parts (2p3u) 16932 | -1/Access | Incoming assault squad redirected 16960 | -1/Access | Discovered new exit (range 6) 16973 | *** | Escaped! Last Messages --------------- 16896_ Gamma Rifle tumbles out of recycling unit. 16898_ System corrupted: Component data lost. 16903_ ALERT: Unidentified disturbance in Zone 7L, multiple assault carriers dispatched. 16903_ Acquired Gamma Rifle. 16914_ System corrupted: Matter fused (-5). 16932_ ALERT: Higher priority target reported, redirecting assault. 16934_ System corrupted: Heat flow error (+255). 16949_ HFH:NI ZRLL 7PRUTW8D/N2W 16955_ Connecting with Terminal... >>Open(Door) Sealed Barrier opened. 16955_ ALERT: Suspicious activity at Terminal A001. Dispatching Investigation squad. 16960_ The Access Shell folds into the floor. 16960_ EXIT=FOUND 16967_ System corrupted: Energy discharge (-76). Map ----- +----------------------------------------------------+ | ?????????????????????????????????????????????????? | | ?????????????????????????????????????????????##### | | ?????????????????????????????????????????????# "" | | ?????????????????????????????????????????????# | | ?????????????????????????????????????????????# = | | ?????????????????????????????????????????????# | | ?????????????????????????????????????????????# | | ??????????????????######## ""R""????????????# | | ??????????????????######## """"????????????# | | ??????????????????###############????????????# | | ??????????????#+################################## | | ????????????? | | ????????????? | | ?????????????????#### ""############## ### | | ?????????????????#### ""##### # # | | ?????????????????#### ""##### ! # # | | ????????????????##### T##### " + # | | ????????????????##### ""##### "" # # | | ????????????????##### ""##### G # # | | ????????????????##### ""#####= "" # # | | ????????????????#### #### " # # | | ????????????????##### ##### # # | | ????????????????##### ##### # # | | ????????????????##### ############## # | | ?????????????????#### ####?????????# ### | | ?????????????????#### @" ####?????????# | | ?????????????????#### "" ####?????????# | | ?????????????????#### ####?????????###### | | ?????????????????#### ####????????????# | | ?????????????????#### ####????????????# | | ?????????????????####""""""""""####????????????# | | ?????????????????####"""????"""####????????????# | | ?????????????????####"""????"""####????????????# | | ?????????????????####"""????"""####????????????# | | ???????????????????????????????????????????????# | | ???????????????????????????????????????????????# | | ???????????????????????????????????????????????### | | ?????????????????????????????????????????????????? | | ?????????????????????????????????????????????????? | | ?????????????????????????????????????????????????? | | ?????????????????????????????????????????????????? | | ?????????????????????????????????????????????????? | | ?????????????????????????????????????????????????? | | ??????????????????????????????????????????######## | | ????????????????????????? ?????????????? + | | ???????????????????????# ??????????????? # | | ???????????????????????# ??????????????? + | | ???????????????????????# ???????????????? # | | ???????????????????????# #???????????????# # | | ???????????????????????# ^#???????????????# # | +----------------------------------------------------+ Best States ------------- Heat Dissipation 129 Energy Generation 37 Energy Capacity 940 Matter Stores 300 Matter Capacity 300 Sight Range 16 Robot Scan Range 16 Terrain Scan Density 10 Jamming Range 14 Base Temperature (-) 200 Armor Coverage 1200 Utility Shielding 66 Evasion (%) 40 Targeting Accuracy 8 Target Analysis 12 Core Analysis 9 Armor Integrity Analysis 40 Recoil Reduction 4 Offensive Hacking 42 Defensive Hacking 12 Item Schematics ----------------- Dispersion Rifle | -6/Factory | Downloaded Combat Drone Bay | -6/Data Miner | Free Lgt. Regenerative Plating | -6/Data Miner | Free Enh. Armored Leg | -6/Data Miner | Free Imp. Energy Well | -6/Data Miner | Free Hvy. Gatling Laser | -6/Data Miner | Free Imp. Linear Gravjet | -6/Data Miner | Free Quantum Capacitor | -6/Data Miner | Free Railgun | -6/Data Miner | Free Gyrokinetic Inverter | -6/Data Miner | Free Imp. Force Booster | -6/Data Miner | Free Adv. Transmission Jammer | -6/Data Miner | Free Imp. Thunder Leg | -6/Data Miner | Free Adv. Launcher Guidance Computer | -6/Data Miner | Free Robot Schematics ------------------ S-27 Virus | -6/Data Miner | Free A-15 Conveyor | -6/Data Miner | Free R-10 Processor | -6/Data Miner | Free Y-64 Sentinel | -6/Data Miner | Free H-66 Slayer | -6/Data Miner | Free W-44 Eye | -6/Data Miner | Free Fabricated ------------ L-41 Fighter | x3 | -6/Factory | Preloaded Dispersion Rifle | x2 | -6/Factory Repaired ---------- Adv. Cooling System | 40% | -5/Factory Studied --------- KE Penetrator | -5/Factory | Hacked Enh. Nova Cannon | -1/Access | Hacked HERF Cannon | -1/Access | Hacked Alien Tech Used ----------------- Core Expander Achievements -------------- None Challenges ------------ None Game ------ Seed NullBeamDiverter Manual? 0 Play Time 01:34:51 Cumulative 2051.6 hours Start 2025.11.29 @ 22:35:20 End 2025.11.30 @ 00:09:23 Sessions 1 Manual Loads 0 Difficulty Rogue Special Mode None Game No. 1325 Rogue 1321 Adventurer 4 Explorer 0 Win Type 0 Total 278 Types 208/13/21/10/3/1/4/10/5/3 Lore% 98 Gallery% 96 Achievement% 86 Wizard Run 0 Options --------- Layout 2 ASCII 1 Keyboard 1 Movement Vi Keybinds 0 Fullscreen 0 Font 24/Terminus Map View 59x48 Zoom Use 0% Tactical HUD 1 Map Filters NONE Filters NONE Steam 1 RUN: ba790c24-8b8b-43fe-b9c5-05ab35afa344